lending/lending_fUSD_20250719
["ID","MTS","AMOUNT","RATE_DAILY","PERIOD"]
[373270796,1752925927785,-480.0,0.00020164,2]
[373270797,1752925927794,-151.0,0.00020164,2]
[373270798,1752925927804,-480.0,0.00020164,2]
[373270799,1752925927814,-480.0,0.00020164,2]
[373270800,1752925927823,-480.0,0.00020164,2]
[373270801,1752925927832,-480.0,0.00020164,2]
[373270802,1752925927842,-273.92593507,0.00020164,2]
[373270803,1752925927852,-480.0,0.00020164,2]
[373270804,1752925927862,-480.0,0.00020164,2]
[373270805,1752925927876,-480.0,0.00020164,2]
[373270806,1752925927886,-460.0,0.00020164,2]
[373270807,1752925927896,-480.0,0.00020164,2]
[373270808,1752925927907,-480.0,0.00020164,2]
[373270809,1752925927919,-480.0,0.00020164,2]
[373270810,1752925927929,-480.0,0.00020164,2]
[373270811,1752925927939,-662.26,0.00020164,2]
[373270812,1752925927948,-480.0,0.00020164,2]
[373270813,1752925927958,-480.0,0.00020164,2]
[373270814,1752925927967,-480.0,0.00020164,2]
[373270815,1752925927979,-480.0,0.00020164,2]
[373270816,1752925927989,-480.0,0.00020164,2]
[373270817,1752925928166,-480.0,0.00020164,2]
[373270818,1752925928176,-480.0,0.00020164,2]
[373270819,1752925928185,-480.0,0.00020164,2]
[373270820,1752925928195,-480.0,0.00020164,2]
[373270821,1752925928204,-480.0,0.00020164,2]
[373270822,1752925928214,-480.0,0.00020164,2]
[373270823,1752925928223,-480.0,0.00020164,2]
[373270824,1752925928234,-480.0,0.00020164,2]
[373270825,1752925928246,-480.0,0.00020164,2]
[373270826,1752925928255,-480.0,0.00020164,2]
[373270827,1752925928265,-480.0,0.00020164,2]
[373270828,1752925928274,-480.0,0.00020164,2]
[373270829,1752925928285,-480.0,0.00020164,2]
[373270830,1752925928294,-469.83,0.00020164,2]
[373270831,1752925928304,-480.0,0.00020164,2]
[373270832,1752925928314,-480.0,0.00020164,2]
[373270833,1752925928324,-480.0,0.00020164,2]
[373270834,1752925928334,-480.0,0.00020164,2]
[373270835,1752925928344,-480.0,0.00020164,2]
[373270836,1752925928353,-480.0,0.00020164,2]
[373270837,1752925928363,-480.0,0.00020164,2]
[373270838,1752925928373,-480.0,0.00020164,2]
[373270839,1752925928383,-540.62,0.00020164,2]
[373270840,1752925928392,-480.0,0.00020164,2]
[373270841,1752925928401,-480.0,0.00020164,2]
[373270842,1752925928413,-480.0,0.00020164,2]
[373270843,1752925928422,-729.46,0.00020164,2]
[373270844,1752925928431,-244.893168,0.00020164,2]
[373270845,1752925928441,-480.0,0.00020164,2]
[373270846,1752925928451,-480.0,0.00020164,2]
[373270847,1752925928460,-480.0,0.00020164,2]
[373270848,1752925928469,-480.0,0.00020164,2]
[373270849,1752925928479,-480.0,0.00020164,2]
[373270850,1752925928489,-480.0,0.00020164,2]
[373270851,1752925928498,-480.0,0.00020164,2]
[373270852,1752925928508,-568.0,0.00020164,2]
[373270853,1752925928518,-480.0,0.00020164,2]
[373270854,1752925928527,-480.0,0.00020164,2]
[373270855,1752925928537,-480.0,0.00020164,2]
[373270856,1752925928547,-528.6,0.00020164,2]
[373270857,1752925928556,-397.43650554,0.00020164,2]
[373270858,1752925928566,-480.0,0.00020164,2]
[373270859,1752925928576,-576.59,0.00020164,2]
[373270860,1752925928585,-480.0,0.00020164,2]
[373270861,1752925928594,-151.0,0.00020164,2]
[373270862,1752925928605,-336.57579771,0.00020164,2]
[373270863,1752925928614,-480.0,0.00020164,2]
[373270864,1752925928624,-480.0,0.00020164,2]
[373270865,1752925928634,-480.0,0.00020164,2]
[373270866,1752925928643,-480.0,0.00020164,2]
[373270867,1752925928653,-480.0,0.00020164,2]
[373270868,1752925928662,-480.0,0.00020164,2]
[373270869,1752925928672,-480.0,0.00020164,2]
[373270870,1752925928682,-151.0,0.00020164,2]
[373270871,1752925928692,-480.0,0.00020164,2]
[373270872,1752925928702,-480.0,0.00020164,2]
[373270873,1752925928711,-151.0,0.00020164,2]
[373270874,1752925928721,-458.24623545,0.00020164,2]
[373270875,1752925928732,-525.70177213,0.00020164,2]
[373270876,1752925928743,-480.0,0.00020164,2]
[373270877,1752925928753,-480.0,0.00020164,2]
[373270878,1752925928762,-568.37,0.00020164,2]
[373270879,1752925928772,-480.0,0.00020164,2]
[373270880,1752925928782,-480.0,0.00020164,2]
[373270881,1752925928792,-865.04,0.00020164,2]
[373270882,1752925928801,-480.0,0.00020164,2]
[373270883,1752925928811,-590.07,0.00020164,2]
[373270884,1752925928821,-480.0,0.00020164,2]
[373270885,1752925928831,-280.0,0.00020164,2]
[373270886,1752925928841,-480.0,0.00020164,2]
[373270887,1752925928852,-151.0,0.00020164,2]
[373270888,1752925928862,-480.0,0.00020164,2]
[373270889,1752925928873,-534.76,0.00020164,2]
[373270890,1752925928882,-480.0,0.00020164,2]
[373270891,1752925928892,-480.0,0.00020164,2]
[373270892,1752925928903,-3423.93,0.00020164,2]
[373270893,1752925928913,-480.0,0.00020164,2]
[373270894,1752925928923,-151.0,0.00020164,2]
[373270895,1752925928932,-480.0,0.00020164,2]
[373270896,1752925928941,-480.0,0.00020164,2]
[373270897,1752925928951,-480.0,0.00020164,2]
[373270898,1752925928961,-480.0,0.00020164,2]
[373270899,1752925928972,-480.0,0.00020164,2]
[373270900,1752925928984,-480.0,0.00020164,2]
[373270901,1752925928994,-480.0,0.00020164,2]
[373270902,1752925929003,-480.0,0.00020164,2]
[373270903,1752925929012,-483.36,0.00020164,2]
[373270904,1752925929022,-534.08,0.00020164,2]
[373270905,1752925929031,-480.0,0.00020164,2]
[373270906,1752925929041,-456.15,0.00020164,2]
[373270907,1752925929051,-480.0,0.00020164,2]
[373270908,1752925929061,-151.0,0.00020164,2]
[373270909,1752925929070,-480.0,0.00020164,2]
[373270910,1752925929080,-610.36,0.00020164,2]
[373270911,1752925929089,-171.17868323,0.00020164,2]
[373270912,1752925929099,-367.21491561,0.00020164,2]
[373270913,1752925929108,-706.76,0.00020164,2]
[373270914,1752925929118,-480.0,0.00020164,2]
[373270915,1752925929127,-1249.6,0.00020164,2]
[373270916,1752925929136,-480.0,0.00020164,2]
[373270917,1752925929146,-151.0,0.00020164,2]
[373270918,1752925929156,-517.22,0.00020164,2]
[373270919,1752925929166,-545.98,0.00020164,2]
[373270920,1752925929176,-525.96,0.00020164,2]
[373270921,1752925929185,-480.0,0.00020164,2]
[373270922,1752925929195,-480.0,0.00020164,2]
[373270923,1752925929204,-480.0,0.00020164,2]
[373270924,1752925929213,-480.0,0.00020164,2]
[373270925,1752925929223,-728.86,0.00020164,2]
[373270926,1752925929234,-1316.89,0.00020164,2]
[373270927,1752925929247,-480.0,0.00020164,2]
[373270928,1752925929257,-538.93034465,0.00020164,2]
[373270929,1752925929266,-815.4,0.00020164,2]
[373270930,1752925929275,-453.17,0.00020164,2]
[373270931,1752925929285,-1101.71,0.00020164,2]
[373270932,1752925929294,-480.0,0.00020164,2]
[373270933,1752925929304,-480.0,0.00020164,2]
[373270934,1752925929315,-748.45,0.00020164,2]
[373270935,1752925929326,-1336.055073,0.00020164,2]
[373270936,1752925929335,-573.22,0.00020164,2]
[373270937,1752925929345,-1293.804523,0.00020164,2]
[373270938,1752925929354,-151.0,0.00020164,2]
[373270939,1752925929363,-480.0,0.00020164,2]
[373270940,1752925929373,-214.66,0.00020164,2]
[373270941,1752925929383,-1617.28,0.00020164,2]
[373270942,1752925929392,-745.78,0.00020164,2]
[373270943,1752925929402,-151.0,0.00020164,2]
[373270944,1752925929412,-151.0,0.00020164,2]
[373270945,1752925929421,-690.32,0.00020164,2]
[373270946,1752925929431,-1070.92,0.00020164,2]
[373270947,1752925929440,-151.0,0.00020164,2]
[373270948,1752925929449,-658.12,0.00020164,2]
[373270949,1752925929459,-934.12,0.00020164,2]
[373270950,1752925929468,-480.0,0.00020164,2]
[373270951,1752925929479,-1174.42,0.00020164,2]
[373270952,1752925929488,-480.0,0.00020164,2]
[373270953,1752925929497,-1202.04,0.00020164,2]
[373270954,1752925929507,-151.0,0.00020164,2]
[373270955,1752925929516,-204.121197,0.00020164,2]
[373270956,1752925929526,-480.0,0.00020164,2]
[373270957,1752925929535,-815.86,0.00020164,2]
[373270958,1752925929544,-1628.87,0.00020164,2]
[373270959,1752925929554,-151.0,0.00020164,2]
[373270960,1752925929563,-1494.63,0.00020164,2]
[373270961,1752925929573,-480.0,0.00020164,2]
[373270962,1752925929582,-830.69,0.00020164,2]
[373270963,1752925929591,-480.0,0.00020164,2]
[373270964,1752925929601,-480.0,0.00020164,2]
[373270965,1752925929611,-480.0,0.00020164,2]
[373270966,1752925929621,-506.60214272,0.00020164,2]
[373270967,1752925929631,-480.0,0.00020164,2]
[373270968,1752925929640,-543.78,0.00020164,2]
[373270969,1752925929650,-2089.05,0.00020164,2]
[373270970,1752925929660,-657.72,0.00020164,2]
[373270971,1752925929671,-1437.33,0.00020164,2]
[373270972,1752925929681,-480.0,0.00020164,2]
[373270973,1752925929691,-537.05,0.00020164,2]
[373270974,1752925929701,-476.78471562,0.00020164,2]
[373270975,1752925929711,-480.0,0.00020164,2]
[373270976,1752925929721,-480.0,0.00020164,2]
[373270977,1752925929732,-635.8,0.00020164,2]
[373270978,1752925929741,-581.67,0.00020164,2]
[373270979,1752925929751,-516.44,0.00020164,2]
[373270980,1752925929761,-1539.584669,0.00020164,2]
[373270981,1752925929771,-480.0,0.00020164,2]
[373270982,1752925929781,-2843.45,0.00020164,2]
[373270983,1752925929791,-480.0,0.00020164,2]
[373270984,1752925929800,-480.0,0.00020164,2]
[373270985,1752925929810,-935.75,0.00020164,2]
[373270986,1752925929820,-480.0,0.00020164,2]
[373270987,1752925929829,-553.19,0.00020164,2]
[373270988,1752925929838,-629.13,0.00020164,2]
[373270989,1752925929848,-789.27,0.00020164,2]
[373270990,1752925929858,-480.0,0.00020164,2]
[373270991,1752925929868,-480.0,0.00020164,2]
[373270992,1752925929877,-480.0,0.00020164,2]
[373270993,1752925929887,-534.81,0.00020164,2]
[373270994,1752925929898,-480.0,0.00020164,2]
[373270995,1752925929908,-480.0,0.00020164,2]
[373270996,1752925929918,-151.0,0.00020164,2]
[373270997,1752925929928,-937.31,0.00020164,2]
[373270998,1752925929938,-480.0,0.00020164,2]
[373270999,1752925929948,-480.0,0.00020164,2]
[373271000,1752925929957,-2978.15,0.00020164,2]
[373271001,1752925929967,-480.0,0.00020164,2]
[373271002,1752925929976,-571.27979926,0.00020164,2]
[373271003,1752925929989,-480.0,0.00020164,2]
[373271004,1752925929998,-151.0,0.00020164,2]
[373271005,1752925930008,-480.0,0.00020164,2]
[373271006,1752925930018,-588.55,0.00020164,2]
[373271007,1752925930027,-480.0,0.00020164,2]
[373271008,1752925930037,-534.31,0.00020164,2]
[373271009,1752925930047,-480.0,0.00020164,2]
[373271010,1752925930057,-151.0,0.00020164,2]
[373271011,1752925930067,-480.0,0.00020164,2]
[373271012,1752925930076,-874.31,0.00020164,2]
[373271013,1752925930085,-5707.74,0.00020164,2]
[373271014,1752925930095,-1001.03,0.00020164,2]
[373271015,1752925930104,-742.13,0.00020164,2]
[373271016,1752925930114,-151.0,0.00020164,2]
[373271017,1752925930124,-1089.17,0.00020164,2]
[373271018,1752925930135,-480.0,0.00020164,2]
[373271019,1752925930144,-480.0,0.00020164,2]
[373271020,1752925930154,-480.0,0.00020164,2]
[373271021,1752925930164,-480.0,0.00020164,2]
[373271022,1752925930173,-480.0,0.00020164,2]
[373271023,1752925930183,-827.74,0.00020164,2]
[373271024,1752925930194,-985.41,0.00020164,2]
[373271025,1752925930204,-883.65,0.00020164,2]
[373271026,1752925930214,-630.85,0.00020164,2]
[373271027,1752925930223,-480.0,0.00020164,2]
[373271028,1752925930235,-480.0,0.00020164,2]
[373271029,1752925930251,-725.32,0.00020164,2]
[373271030,1752925930260,-594.58,0.00020164,2]
[373271031,1752925930269,-546.59,0.00020164,2]
[373271032,1752925930279,-480.0,0.00020164,2]
[373271033,1752925930290,-961.48,0.00020164,2]
[373271034,1752925930299,-480.0,0.00020164,2]
[373271035,1752925930309,-480.0,0.00020164,2]
[373271036,1752925930320,-480.0,0.00020164,2]
[373271037,1752925930330,-1312.32,0.00020164,2]
[373271038,1752925930340,-480.0,0.00020164,2]
[373271039,1752925930349,-481.15,0.00020164,2]
[373271040,1752925930359,-480.0,0.00020164,2]
[373271041,1752925930368,-3316.07,0.00020164,2]
[373271042,1752925930377,-480.0,0.00020164,2]
[373271043,1752925930387,-493.61,0.00020164,2]
[373271044,1752925930396,-480.0,0.00020164,2]
[373271045,1752925930405,-480.0,0.00020164,2]
[373271046,1752925930415,-480.0,0.00020164,2]
[373271047,1752925930425,-1168.4,0.00020164,2]
[373271048,1752925930435,-3075.77,0.00020164,2]
[373271049,1752925930445,-480.0,0.00020164,2]
[373271050,1752925930455,-558.22,0.00020164,2]
[373271051,1752925930464,-480.0,0.00020164,2]
[373271052,1752925930474,-538.42,0.00020164,2]
[373271053,1752925930485,-2213.01,0.00020164,2]
[373271054,1752925930495,-151.0,0.00020164,2]
[373271055,1752925930505,-480.0,0.00020164,2]
[373271056,1752925930515,-617.33,0.00020164,2]
[373271057,1752925930524,-480.0,0.00020164,2]
[373271058,1752925930534,-480.0,0.00020164,2]
[373271059,1752925930544,-480.0,0.00020164,2]
[373271060,1752925930554,-480.0,0.00020164,2]
[373271061,1752925930563,-480.0,0.00020164,2]
[373271062,1752925930573,-151.0,0.00020164,2]
[373271063,1752925930582,-1282.83,0.00020164,2]
[373271064,1752925930591,-607.78152326,0.00020164,2]
[373271065,1752925930600,-480.0,0.00020164,2]
[373271066,1752925930610,-480.0,0.00020164,2]
[373271067,1752925930620,-480.0,0.00020164,2]
[373271068,1752925930629,-480.0,0.00020164,2]
[373271069,1752925930639,-643.18,0.00020164,2]
[373271070,1752925930649,-901.37,0.00020164,2]
[373271071,1752925930658,-480.0,0.00020164,2]
[373271072,1752925930668,-1874.62,0.00020164,2]
[373271073,1752925930678,-480.0,0.00020164,2]
[373271074,1752925930688,-480.0,0.00020164,2]
[373271076,1752925930848,-2423.29,0.00020164,2]
[373271077,1752925930872,-480.0,0.00020164,2]
[373271078,1752925930882,-480.0,0.00020164,2]
[373271079,1752925930891,-480.0,0.00020164,2]
[373271080,1752925930902,-480.0,0.00020164,2]
[373271081,1752925930911,-733.01,0.00020164,2]
[373271082,1752925930921,-570.78,0.00020164,2]
[373271083,1752925930931,-853.43,0.00020164,2]
[373271084,1752925930940,-1074.29,0.00020164,2]
[373271085,1752925930950,-769.55,0.00020164,2]
[373271086,1752925930960,-480.0,0.00020164,2]
[373271087,1752925930970,-480.0,0.00020164,2]
[373271088,1752925930979,-1297.2,0.00020164,2]
[373271089,1752925930990,-480.0,0.00020164,2]
[373271090,1752925931000,-1019.51,0.00020164,2]
[373271091,1752925931009,-642.8,0.00020164,2]
[373271092,1752925931020,-480.0,0.00020164,2]
[373271093,1752925931029,-480.0,0.00020164,2]
[373271094,1752925931041,-548.31,0.00020164,2]
[373271095,1752925931056,-480.0,0.00020164,2]
[373271096,1752925931066,-1847.27,0.00020164,2]
[373271097,1752925931075,-480.0,0.00020164,2]
[373271098,1752925931085,-260.0,0.00020164,2]
[373271099,1752925931095,-927.42,0.00020164,2]
[373271100,1752925931104,-4709.51,0.00020164,2]
[373271101,1752925931114,-480.0,0.00020164,2]
[373271102,1752925931124,-913.62,0.00020164,2]
[373271103,1752925931134,-181.27940926,0.00020164,2]
[373271104,1752925931144,-480.0,0.00020164,2]
[373271105,1752925931154,-506.89,0.00020164,2]
[373271106,1752925931163,-859.02,0.00020164,2]
[373271107,1752925931173,-781.8,0.00020164,2]
[373271108,1752925931183,-1631.07,0.00020164,2]
[373271109,1752925931193,-644.67,0.00020164,2]
[373271110,1752925931203,-480.0,0.00020164,2]
[373271111,1752925931212,-604.504713,0.00020164,2]
[373271112,1752925931222,-596.88,0.00020164,2]
[373271113,1752925931233,-555.41,0.00020164,2]
[373271114,1752925931246,-480.0,0.00020164,2]
[373271115,1752925931256,-480.0,0.00020164,2]
[373271116,1752925931266,-604.504713,0.00020164,2]
[373271117,1752925931276,-480.0,0.00020164,2]
[373271118,1752925931286,-553.68,0.00020164,2]
[373271119,1752925931296,-480.0,0.00020164,2]
[373271120,1752925931305,-480.0,0.00020164,2]
[373271121,1752925931316,-3337.6,0.00020164,2]
[373271122,1752925931327,-520.06,0.00020164,2]
[373271123,1752925931337,-1000.0,0.00020164,2]
[373271124,1752925931346,-480.0,0.00020164,2]
[373271125,1752925931355,-874.98,0.00020164,2]
[373271126,1752925931365,-402.16950363,0.00020164,2]
[373271127,1752925931375,-480.0,0.00020164,2]
[373271128,1752925931384,-480.0,0.00020164,2]
[373271129,1752925931395,-480.0,0.00020164,2]
[373271130,1752925931405,-480.0,0.00020164,2]
[373271131,1752925931415,-1018.91,0.00020164,2]
[373271132,1752925931425,-480.0,0.00020164,2]
[373271133,1752925931434,-480.0,0.00020164,2]
[373271134,1752925931444,-575.14,0.00020164,2]
[373271135,1752925931454,-1603.56,0.00020164,2]
[373271136,1752925931464,-480.0,0.00020164,2]
[373271137,1752925931474,-950.21,0.00020164,2]
[373271138,1752925931484,-716.19,0.00020164,2]
[373271139,1752925931494,-480.0,0.00020164,2]
[373271140,1752925931504,-480.0,0.00020164,2]
[373271141,1752925931515,-480.0,0.00020164,2]
[373271142,1752925931525,-480.0,0.00020164,2]
[373271143,1752925931535,-785.71,0.00020164,2]
[373271144,1752925931545,-653.01,0.00020164,2]
[373271145,1752925931555,-480.0,0.00020164,2]
[373271146,1752925931565,-480.0,0.00020164,2]
[373271147,1752925931575,-480.0,0.00020164,2]
[373271148,1752925931585,-802.07,0.00020164,2]
[373271149,1752925931595,-1379.0,0.00020164,2]
[373271150,1752925931607,-616.21,0.00020164,2]
[373271151,1752925931618,-480.0,0.00020164,2]
[373271152,1752925931629,-274.70837967,0.00020164,2]
[373271153,1752925931639,-480.0,0.00020164,2]
[373271154,1752925931649,-280.0,0.00020164,2]
[373271155,1752925931660,-622.48,0.00020164,2]
[373271156,1752925931670,-480.0,0.00020164,2]
[373271157,1752925931681,-14833.83,0.00020164,2]
[373271158,1752925931696,-272.99287944,0.00020164,2]
[373271159,1752925931706,-480.0,0.00020164,2]
[373271160,1752925931716,-567.92,0.00020164,2]
[373271161,1752925931726,-500.0,0.00020173,2]
[373271162,1752925931738,-1000.0,0.00020253,2]
[373271163,1752925931749,-2456.39,0.00020272,2]
[373271164,1752925931759,-152.165143,0.00020273,2]
[373271165,1752925931769,-151.0,0.00020273,2]
[373271166,1752925931779,-151.724893,0.00020273,2]
[373271167,1752925931789,-151.394546,0.00020273,2]
[373271168,1752925931799,-480.0,0.00020273,2]
[373271169,1752925931809,-583.76273092,0.00020273,2]
[373271170,1752925931819,-480.0,0.00020273,2]
[373271171,1752925931829,-515.14322695,0.00020273,2]
[373271172,1752925931838,-480.0,0.00020273,2]
[373271173,1752925931849,-480.0,0.00020273,2]
[373271174,1752925931859,-480.0,0.00020273,2]
[373271175,1752925931869,-480.0,0.00020273,2]
[373271176,1752925931878,-480.0,0.00020273,2]
[373271177,1752925931888,-480.0,0.00020273,2]
[373271178,1752925931897,-568.5,0.00020273,2]
[373271179,1752925931908,-480.0,0.00020273,2]
[373271180,1752925931917,-480.0,0.00020273,2]
[373271181,1752925931928,-480.0,0.00020273,2]
[373271182,1752925931938,-480.0,0.00020273,2]
[373271183,1752925931947,-480.0,0.00020273,2]
[373271184,1752925931957,-280.0,0.00020273,2]
[373271185,1752925931967,-615.97,0.00020273,2]
[373271186,1752925931978,-480.0,0.00020273,2]
[373271187,1752925931988,-480.0,0.00020273,2]
[373271188,1752925931998,-480.0,0.00020273,2]
[373271189,1752925932008,-480.0,0.00020273,2]
[373271190,1752925932017,-480.0,0.00020273,2]
[373271191,1752925932027,-480.0,0.00020273,2]
[373271192,1752925932037,-480.0,0.00020273,2]
[373271193,1752925932046,-219.97386212,0.00020273,2]
[373271194,1752925932055,-480.0,0.00020273,2]
[373271195,1752925932065,-406.15902582,0.00020273,2]
[373271196,1752925932088,-480.0,0.00020273,2]
[373271197,1752925932105,-501.84783022,0.00020273,2]
[373271198,1752925932124,-603.02,0.00020273,2]
[373271199,1752925932144,-480.0,0.00020273,2]
[373271200,1752925932161,-260.0,0.00020273,2]
[373271201,1752925932179,-480.0,0.00020273,2]
[373271202,1752925932199,-480.0,0.00020273,2]
[373271203,1752925932218,-589.16,0.00020273,2]
[373271204,1752925932237,-480.0,0.00020273,2]
[373271205,1752925932257,-480.0,0.00020273,2]
[373271206,1752925932275,-480.0,0.00020273,2]
[373271207,1752925932291,-272.25102275,0.00020273,2]
[373271208,1752925932308,-480.0,0.00020273,2]
[373271209,1752925932325,-480.0,0.00020273,2]
[373271210,1752925932343,-480.0,0.00020273,2]
[373271211,1752925932358,-480.0,0.00020273,2]
[373271212,1752925932373,-480.0,0.00020273,2]
[373271213,1752925932389,-480.0,0.00020273,2]
[373271214,1752925932404,-623.6,0.00020273,2]
[373271215,1752925932420,-399.76739981,0.00020273,2]
[373271216,1752925932435,-480.0,0.00020273,2]
[373271217,1752925932450,-480.0,0.00020273,2]
[373271218,1752925932465,-480.0,0.00020273,2]
[373271219,1752925932480,-300.48053857,0.00020273,2]
[373271220,1752925932495,-480.0,0.00020273,2]
[373271221,1752925932511,-344.94,0.00020273,2]
[373271222,1752925932526,-480.0,0.00020273,2]
[373271223,1752925932542,-480.0,0.00020273,2]
[373271224,1752925932556,-480.0,0.00020273,2]
[373271225,1752925932571,-480.0,0.00020273,2]
[373271226,1752925932586,-480.0,0.00020273,2]
[373271227,1752925932601,-480.0,0.00020273,2]
[373271228,1752925932616,-480.0,0.00020273,2]
[373271229,1752925932631,-480.0,0.00020273,2]
[373271230,1752925932647,-480.0,0.00020273,2]
[373271231,1752925932662,-480.0,0.00020273,2]
[373271232,1752925932678,-480.0,0.00020273,2]
[373271233,1752925932694,-480.0,0.00020273,2]
[373271234,1752925932708,-480.0,0.00020273,2]
[373271235,1752925932724,-480.0,0.00020273,2]
[373271236,1752925932741,-421.04,0.00020273,2]
[373271237,1752925932760,-253.88711786,0.00020273,2]
[373271238,1752925932776,-480.0,0.00020273,2]
[373271239,1752925932791,-480.0,0.00020273,2]
[373271240,1752925932806,-480.0,0.00020273,2]
[373271241,1752925932822,-480.0,0.00020273,2]
[373271242,1752925932838,-488.62974488,0.00020273,2]
[373271243,1752925932853,-480.0,0.00020273,2]
[373271244,1752925932869,-480.0,0.00020273,2]
[373271245,1752925932885,-480.0,0.00020273,2]
[373271246,1752925932902,-480.0,0.00020273,2]
[373271247,1752925932920,-480.0,0.00020273,2]
[373271248,1752925932936,-480.0,0.00020273,2]
[373271249,1752925932952,-551.9,0.00020273,2]
[373271250,1752925932968,-480.0,0.00020273,2]
[373271251,1752925932984,-480.0,0.00020273,2]
[373271252,1752925933000,-480.0,0.00020273,2]
[373271253,1752925933016,-480.0,0.00020273,2]
[373271254,1752925933032,-281.87848732,0.00020273,2]
[373271255,1752925933048,-480.0,0.00020273,2]
[373271256,1752925933064,-253.70915884,0.00020273,2]
[373271257,1752925933080,-480.0,0.00020273,2]
[373271258,1752925933095,-480.0,0.00020273,2]
[373271259,1752925933110,-480.0,0.00020273,2]
[373271260,1752925933125,-365.02557053,0.00020273,2]
[373271261,1752925933140,-480.0,0.00020273,2]
[373271262,1752925933156,-662.26,0.00020273,2]
[373271263,1752925933171,-480.0,0.00020273,2]
[373271264,1752925933186,-480.0,0.00020273,2]
[373271265,1752925933203,-390.58,0.00020273,2]
[373271266,1752925933219,-480.0,0.00020273,2]
[373271267,1752925933236,-480.0,0.00020273,2]
[373271268,1752925933256,-240.0,0.00020273,2]
[373271269,1752925933271,-480.0,0.00020273,2]
[373271270,1752925933288,-480.0,0.00020273,2]
[373271271,1752925933304,-480.0,0.00020273,2]
[373271272,1752925933315,-480.0,0.00020273,2]
[373271273,1752925933326,-480.0,0.00020273,2]
[373271274,1752925933336,-351.14,0.00020273,2]
[373271275,1752925933347,-480.0,0.00020273,2]
[373271276,1752925933357,-480.0,0.00020273,2]
[373271277,1752925933367,-480.0,0.00020273,2]
[373271278,1752925933383,-480.0,0.00020273,2]
[373271279,1752925933393,-480.0,0.00020273,2]
[373271280,1752925933404,-480.0,0.00020273,2]
[373271281,1752925933413,-480.0,0.00020273,2]
[373271282,1752925933423,-480.0,0.00020273,2]
[373271283,1752925933433,-480.0,0.00020273,2]
[373271284,1752925933443,-480.0,0.00020273,2]
[373271285,1752925933453,-480.0,0.00020273,2]
[373271286,1752925933462,-480.0,0.00020273,2]
[373271287,1752925933472,-413.51,0.00020273,2]
[373271288,1752925933483,-480.0,0.00020273,2]
[373271289,1752925933492,-540.62,0.00020273,2]
[373271290,1752925933502,-480.0,0.00020273,2]
[373271291,1752925933511,-540.61,0.00020273,2]
[373271292,1752925933521,-480.0,0.00020273,2]
[373271293,1752925933531,-729.46,0.00020273,2]
[373271294,1752925933540,-445.58,0.00020273,2]
[373271295,1752925933550,-480.0,0.00020273,2]
[373271296,1752925933559,-240.0,0.00020273,2]